fUSD/lending_fUSD_20260413
["ID","MTS","AMOUNT","RATE_DAILY","PERIOD"]
[420368075,1776041555603,-709.26,0.0003863,15]
[420368076,1776041555615,-825.37,0.0003863,15]
[420368077,1776041555632,-1026.91,0.0003863,15]
[420368078,1776041555642,-500.0,0.0003863,15]
[420368079,1776041555658,-1431.24,0.0003863,15]
[420368080,1776041555676,-2532.94,0.0003863,15]
[420368081,1776041555686,-500.0,0.0003863,15]
[420368082,1776041555713,-500.0,0.0003863,15]
[420368083,1776041555730,-500.0,0.0003863,15]
[420368084,1776041555742,-500.0,0.0003863,15]
[420368085,1776041555766,-730.35,0.0003863,15]
[420368086,1776041555782,-4735.33,0.0003863,15]
[420368087,1776041555806,-900.75,0.0003863,15]
[420368088,1776041555822,-5584.03,0.0003863,15]
[420368089,1776041555836,-1104.11,0.0003863,15]
[420368090,1776041555859,-857.59,0.0003863,15]
[420368091,1776041555873,-641.98914455,0.0003863,15]
[420368092,1776041555893,-500.0,0.0003863,15]
[420368093,1776041555910,-500.0,0.0003863,15]
[420368094,1776041555921,-500.0,0.0003863,15]
[420368095,1776041555941,-500.0,0.0003863,15]
[420368096,1776041555958,-1034.64,0.0003863,15]
[420368097,1776041555969,-815.99,0.0003863,15]
[420368098,1776041555993,-868.13,0.0003863,15]
[420368099,1776041556011,-957.03,0.0003863,15]
[420368100,1776041556029,-1561.56,0.0003863,15]
[420368101,1776041556038,-523.62,0.0003863,2]
[420368102,1776041556051,-500.0,0.0003863,15]
[420368103,1776041556071,-500.0,0.0003863,15]
[420368104,1776041556082,-500.0,0.0003863,15]
[420368105,1776041556093,-647.72,0.0003863,15]
[420368106,1776041556113,-500.0,0.0003863,15]
[420368107,1776041556131,-1136.23,0.0003863,15]
[420368108,1776041556142,-1822.38,0.0003863,15]
[420368109,1776041556155,-500.0,0.0003863,15]
[420368110,1776041556170,-690.84,0.0003863,15]
[420368111,1776041556189,-904.8,0.0003863,15]
[420368112,1776041556199,-2160.91,0.0003863,15]
[420368113,1776041556213,-634.41,0.0003863,15]
[420368114,1776041556232,-500.0,0.0003863,15]
[420368115,1776041556242,-939.32,0.0003863,15]
[420368116,1776041556261,-1241.9,0.0003863,15]
[420368117,1776041556274,-1402.95,0.0003863,15]
[420368118,1776041556285,-500.0,0.0003863,15]
[420368119,1776041556307,-337.25117937,0.0003863,15]
[420368120,1776041556321,-740.92,0.0003863,15]
[420368121,1776041556333,-500.0,0.0003863,15]
[420368122,1776041556347,-3106.17,0.0003863,15]
[420368123,1776041556361,-1400.48,0.0003863,15]
[420368124,1776041556371,-1399.26,0.0003863,15]
[420368125,1776041556382,-500.0,0.0003863,15]
[420368126,1776041556393,-500.0,0.0003863,15]
[420368127,1776041556408,-3891.46,0.0003863,15]
[420368128,1776041556420,-871.08,0.0003863,15]
[420368129,1776041556429,-500.0,0.0003863,15]
[420368130,1776041556443,-1343.25,0.0003863,15]
[420368131,1776041556463,-500.0,0.0003863,15]
[420368132,1776041556472,-500.0,0.0003863,15]
[420368133,1776041556482,-500.0,0.0003863,15]
[420368134,1776041556494,-3348.65,0.0003863,15]
[420368135,1776041556510,-500.0,0.0003863,15]
[420368136,1776041556526,-500.0,0.0003863,15]
[420368137,1776041556538,-500.0,0.0003863,15]
[420368138,1776041556562,-623.58,0.0003863,15]
[420368139,1776041556574,-1764.73,0.0003863,15]
[420368140,1776041556600,-500.0,0.0003863,15]
[420368141,1776041556610,-605.34,0.0003863,15]
[420368142,1776041556636,-500.0,0.0003863,15]
[420368143,1776041556646,-1105.88,0.0003863,15]
[420368144,1776041556665,-523.38,0.0003863,15]
[420368145,1776041556681,-500.0,0.0003863,15]
[420368146,1776041556691,-2858.64,0.0003863,15]
[420368147,1776041556706,-500.0,0.0003863,15]
[420368148,1776041556733,-500.0,0.0003863,15]
[420368149,1776041556743,-500.0,0.0003863,15]
[420368150,1776041556761,-500.0,0.0003863,15]
[420368151,1776041556777,-500.0,0.0003863,15]
[420368152,1776041556786,-500.0,0.0003863,15]
[420368153,1776041556795,-1857.91,0.0003863,15]
[420368154,1776041556807,-1970.32,0.0003863,15]
[420368155,1776041556819,-500.0,0.0003863,15]
[420368156,1776041556828,-500.0,0.0003863,15]
[420368157,1776041556846,-1096.43,0.0003863,15]
[420368158,1776041556964,-299.99757008,0.0003863,15]
[420368159,1776041556974,-1151.97,0.0003863,15]
[420368160,1776041556990,-609.08,0.0003863,15]
[420368161,1776041557005,-2001.91,0.0003863,15]
[420368162,1776041557014,-592.53,0.0003863,15]
[420368163,1776041557030,-500.0,0.0003863,15]
[420368164,1776041557068,-2384.68,0.0003863,15]
[420368165,1776041557078,-500.0,0.0003863,15]
[420368166,1776041557090,-1034.02,0.0003863,15]
[420368167,1776041557124,-1344.4,0.0003863,15]
[420368168,1776041557134,-2587.1,0.0003863,15]
[420368169,1776041557151,-376.94499127,0.0003863,15]
[420368170,1776041557168,-1703.71,0.0003863,15]
[420368171,1776041557178,-1594.35,0.0003863,15]
[420368172,1776041557191,-952.18,0.0003863,15]
[420368173,1776041557210,-526.15,0.0003863,15]
[420368174,1776041557220,-1708.56,0.0003863,15]
[420368175,1776041557231,-1390.73,0.0003863,15]
[420368176,1776041557243,-723.29,0.0003863,15]
[420368177,1776041557255,-500.05,0.0003863,15]
[420368178,1776041557265,-500.0,0.0003863,15]
[420368179,1776041557283,-500.0,0.0003863,15]
[420368180,1776041557294,-500.0,0.0003863,15]
[420368181,1776041557304,-500.0,0.0003863,15]
[420368182,1776041557314,-995.87,0.0003863,15]
[420368183,1776041557329,-500.0,0.0003863,15]
[420368184,1776041557342,-1106.06,0.0003863,15]
[420368185,1776041557352,-500.0,0.0003863,15]
[420368186,1776041557367,-1283.69,0.0003863,15]
[420368187,1776041557379,-2291.91,0.0003863,15]
[420368188,1776041557393,-500.0,0.0003863,15]
[420368189,1776041557407,-1055.7,0.0003863,15]
[420368190,1776041557430,-500.0,0.0003863,15]
[420368191,1776041557448,-500.0,0.0003863,15]
[420368192,1776041557460,-542.70410299,0.0003863,15]
[420368193,1776041557470,-500.0,0.0003863,15]
[420368194,1776041557479,-500.0,0.0003863,15]
[420368195,1776041557498,-500.0,0.0003863,15]
[420368196,1776041557508,-1734.95,0.0003863,15]
[420368197,1776041557518,-500.0,0.0003863,15]
[420368198,1776041557534,-500.0,0.0003863,15]
[420368199,1776041557546,-500.0,0.0003863,15]
[420368200,1776041557560,-500.0,0.0003863,15]
[420368201,1776041557570,-1610.52,0.0003863,15]
[420368202,1776041557584,-970.57,0.0003863,15]
[420368203,1776041557594,-500.0,0.0003863,15]
[420368204,1776041557610,-749.82,0.0003863,15]
[420368205,1776041557623,-933.34,0.0003863,15]
[420368206,1776041557633,-500.0,0.0003863,15]
[420368207,1776041557653,-500.0,0.0003863,15]
[420368208,1776041557670,-1188.63,0.0003863,15]
[420368209,1776041557704,-643.8,0.0003863,15]
[420368210,1776041557714,-749.54,0.0003863,15]
[420368211,1776041557738,-500.0,0.0003863,15]
[420368212,1776041557752,-665.53,0.0003863,15]
[420368213,1776041557765,-3022.45,0.0003863,15]
[420368214,1776041557792,-730.53,0.0003863,15]
[420368215,1776041557802,-500.0,0.0003863,15]
[420368216,1776041557831,-500.0,0.0003863,15]
[420368217,1776041557844,-1125.09,0.0003863,15]
[420368218,1776041557879,-860.42,0.0003863,15]
[420368219,1776041557890,-500.0,0.0003863,15]
[420368220,1776041557907,-919.63,0.0003863,15]
[420368221,1776041557921,-500.0,0.0003863,15]
[420368222,1776041557946,-3724.43,0.0003863,15]
[420368223,1776041557956,-566.56,0.0003863,15]
[420368224,1776041557973,-1642.97,0.0003863,15]
[420368225,1776041557987,-2935.94,0.0003863,15]
[420368226,1776041557997,-749.44,0.0003863,15]
[420368227,1776041558016,-1409.24,0.0003863,15]
[420368228,1776041558040,-1838.08,0.0003863,15]
[420368229,1776041558056,-500.0,0.0003863,15]
[420368230,1776041558076,-2539.74,0.0003863,15]
[420368231,1776041558085,-500.0,0.0003863,15]
[420368232,1776041558100,-3600.95,0.0003863,15]
[420368233,1776041558118,-594.11,0.0003863,15]
[420368234,1776041558130,-1740.79,0.0003863,15]
[420368235,1776041558144,-991.93,0.0003863,15]
[420368236,1776041558165,-544.97,0.0003863,15]
[420368237,1776041558175,-3727.63,0.0003863,15]
[420368238,1776041558186,-500.0,0.0003863,15]
[420368239,1776041558198,-1800.61,0.0003863,15]
[420368240,1776041558208,-579.09408223,0.0003863,15]
[420368241,1776041558218,-1550.44,0.0003863,15]
[420368242,1776041558231,-935.8,0.0003863,15]
[420368243,1776041558242,-1389.57,0.0003863,15]
[420368244,1776041558260,-2959.44,0.0003863,15]
[420368245,1776041558271,-1416.09,0.0003863,15]
[420368246,1776041558282,-500.0,0.0003863,15]
[420368247,1776041558301,-666.88,0.0003863,15]
[420368248,1776041558325,-500.0,0.0003863,15]
[420368249,1776041558341,-823.28,0.0003863,15]
[420368250,1776041558363,-3237.88,0.0003863,15]
[420368251,1776041558394,-604.32668258,0.0003863,15]
[420368252,1776041558408,-500.0,0.0003863,15]
[420368253,1776041558432,-903.79,0.0003863,15]
[420368254,1776041558460,-1102.66,0.0003863,15]
[420368255,1776041558476,-814.41,0.0003863,15]
[420368256,1776041558499,-500.0,0.0003863,15]
[420368257,1776041558525,-500.0,0.0003863,15]
[420368258,1776041558535,-1158.52,0.0003863,15]
[420368259,1776041558562,-1843.26,0.0003863,15]
[420368260,1776041558572,-2877.49,0.0003863,15]
[420368261,1776041558598,-4854.15,0.0003863,15]
[420368262,1776041558608,-2664.28,0.0003863,15]
[420368263,1776041558618,-500.0,0.0003863,15]
[420368264,1776041558641,-972.23,0.0003863,15]
[420368265,1776041558651,-500.0,0.0003863,15]
[420368266,1776041558664,-500.0,0.0003863,15]
[420368267,1776041558683,-500.0,0.0003863,15]
[420368268,1776041558693,-500.0,0.0003863,15]
[420368269,1776041558702,-938.26,0.0003863,15]
[420368270,1776041558727,-1898.71,0.0003863,15]
[420368271,1776041558737,-2356.97,0.0003863,15]
[420368272,1776041558759,-500.0,0.0003863,15]
[420368273,1776041558768,-500.0,0.0003863,15]
[420368274,1776041558779,-15649.82,0.0003863,15]
[420368275,1776041558797,-500.0,0.0003863,15]
[420368276,1776041558807,-500.0,0.0003863,15]
[420368277,1776041558816,-2333.12,0.0003863,15]
[420368278,1776041558826,-500.0,0.0003863,15]
[420368279,1776041558844,-500.0,0.0003863,15]
[420368280,1776041558854,-6070.81,0.0003863,2]
[420368281,1776041558863,-1343.87,0.0003863,15]
[420368282,1776041558880,-500.0,0.0003863,15]
[420368283,1776041558897,-500.0,0.0003863,15]
[420368284,1776041558907,-572.0,0.0003863,15]
[420368285,1776041558929,-500.0,0.0003863,15]
[420368286,1776041558939,-726.46,0.0003863,15]
[420368287,1776041558954,-500.0,0.0003863,15]
[420368288,1776041558966,-1977.12,0.0003863,15]
[420368289,1776041558982,-1912.95,0.0003863,15]
[420368290,1776041558993,-53919.81,0.0003863,15]
[420368291,1776041559005,-3973.18,0.0003863,15]
[420368292,1776041559032,-2080.47,0.0003863,15]
[420368293,1776041559051,-1380.83,0.0003863,15]
[420368294,1776041559062,-1594.37,0.0003863,15]
[420368295,1776041559071,-500.0,0.0003863,15]
[420368296,1776041559089,-2286.82,0.0003863,15]
[420368297,1776041559119,-1215.29,0.0003863,15]
[420368298,1776041559147,-2777.29,0.0003863,15]
[420368299,1776041559156,-500.0,0.0003863,15]
[420368300,1776041559177,-500.0,0.0003863,15]
[420368301,1776041559189,-1653.98,0.0003863,15]
[420368302,1776041559198,-500.0,0.0003863,15]
[420368303,1776041559231,-1383.8,0.0003863,15]
[420368304,1776041559241,-2757.74,0.0003863,15]
[420368305,1776041559250,-5671.16,0.0003863,14]
[420368306,1776041559268,-1337.28,0.0003863,15]
[420368307,1776041559282,-500.0,0.0003863,15]
[420368308,1776041559291,-1001.04,0.0003863,15]
[420368309,1776041559304,-565.18,0.0003863,15]
[420368310,1776041559322,-3432.21,0.0003863,15]
[420368311,1776041559332,-564.66,0.0003863,15]
[420368312,1776041559342,-469.09732068,0.0003863,15]
[420368313,1776041559360,-500.0,0.0003863,15]
[420368314,1776041559372,-1410.07,0.0003863,15]
[420368315,1776041559380,-500.0,0.0003863,15]
[420368316,1776041559390,-2188.75,0.0003863,14]
[420368317,1776041559409,-500.0,0.0003863,15]
[420368318,1776041559419,-500.0,0.0003863,15]
[420368319,1776041559428,-555.08,0.0003863,15]
[420368320,1776041559444,-760.05,0.0003863,15]
[420368321,1776041559454,-522.26,0.0003863,15]
[420368322,1776041559464,-1451.02,0.0003863,15]
[420368323,1776041559473,-592.94640424,0.0003863,15]
[420368324,1776041559485,-684.15,0.0003863,15]
[420368325,1776041559499,-2164.58,0.0003863,15]
[420368326,1776041559509,-2493.89,0.0003863,15]
[420368327,1776041559527,-500.0,0.0003863,15]
[420368328,1776041559542,-500.0,0.0003863,15]
[420368329,1776041559552,-500.0,0.0003863,15]
[420368330,1776041559564,-1258.95,0.0003863,15]
[420368331,1776041559581,-500.0,0.0003863,15]
[420368332,1776041559600,-668.26,0.0003863,15]
[420368333,1776041559611,-841.2,0.0003863,15]
[420368334,1776041559624,-210.44327597,0.0003863,15]
[420368335,1776041559634,-220.83353057,0.0003863,15]
[420368336,1776041559650,-1402.85,0.0003863,15]
[420368337,1776041559659,-1966.15,0.0003863,15]
[420368338,1776041559674,-500.0,0.0003863,15]
[420368339,1776041559703,-2099.54,0.0003863,15]
[420368340,1776041559713,-500.0,0.0003863,15]
[420368341,1776041559734,-500.0,0.0003863,15]
[420368342,1776041559744,-500.0,0.0003863,15]
[420368343,1776041559765,-500.0,0.0003863,15]
[420368344,1776041559776,-500.0,0.0003863,15]
[420368345,1776041559798,-1499.38,0.0003863,15]
[420368346,1776041559808,-1156.86,0.0003863,15]
[420368347,1776041559818,-500.0,0.0003863,15]
[420368348,1776041559839,-500.0,0.0003863,15]
[420368349,1776041559850,-500.0,0.0003863,15]
[420368350,1776041559863,-727.01,0.0003863,15]
[420368351,1776041559889,-451.49207669,0.0003863,15]
[420368352,1776041559898,-500.0,0.0003863,15]
[420368353,1776041559907,-500.0,0.0003863,15]
[420368354,1776041559926,-500.0,0.0003863,15]
[420368355,1776041559935,-1088.75,0.0003863,10]
[420368356,1776041559945,-2369.56,0.0003863,15]
[420368357,1776041559960,-500.0,0.0003863,15]
[420368358,1776041559986,-500.0,0.0003863,15]
[420368359,1776041559997,-2576.55,0.0003863,15]
[420368360,1776041560007,-710.49,0.0003863,15]
[420368361,1776041560025,-500.0,0.0003863,15]
[420368362,1776041560037,-500.0,0.0003863,15]
[420368363,1776041560048,-500.0,0.0003863,15]
[420368364,1776041560063,-551.01,0.0003863,15]
[420368365,1776041560076,-500.0,0.0003863,15]
[420368366,1776041560088,-530.19,0.0003863,15]
[420368367,1776041560101,-500.0,0.0003863,15]
[420368368,1776041560111,-500.0,0.0003863,15]
[420368369,1776041560121,-500.0,0.0003863,15]
[420368370,1776041560136,-1050.9,0.0003863,2]
[420368371,1776041560150,-543.87971646,0.0003863,15]
[420368372,1776041560161,-777.27,0.0003863,15]
[420368373,1776041560184,-1688.24,0.0003863,15]
[420368374,1776041560196,-500.0,0.0003863,15]
[420368375,1776041560206,-500.0,0.0003863,15]
[420368376,1776041560223,-1238.65,0.0003863,15]
[420368377,1776041560237,-838.3,0.0003863,15]
[420368378,1776041560247,-3632.99,0.0003863,15]
[420368379,1776041560262,-519.68,0.0003863,15]
[420368380,1776041560285,-500.0,0.0003863,15]
[420368381,1776041560320,-500.0,0.0003863,2]
[420368382,1776041560346,-500.0,0.0003863,15]
[420368383,1776041560363,-1404.43,0.0003863,15]
[420368384,1776041560385,-1416.03,0.0003863,15]
[420368385,1776041560403,-500.0,0.0003863,15]
[420368386,1776041560440,-500.0,0.0003863,15]
[420368387,1776041560450,-500.0,0.0003863,15]
[420368388,1776041560482,-500.0,0.0003863,15]
[420368389,1776041560491,-2663.72,0.0003863,15]
[420368390,1776041560524,-500.0,0.0003863,15]
[420368391,1776041560554,-500.0,0.0003863,15]
[420368392,1776041560563,-1941.75,0.0003863,15]
[420368393,1776041560572,-500.0,0.0003863,15]
[420368394,1776041560606,-500.0,0.0003863,15]
[420368395,1776041560616,-1140.07,0.0003863,15]
[420368396,1776041560625,-500.0,0.0003863,15]
[420368397,1776041560635,-2327.16,0.0003863,15]
[420368398,1776041560652,-500.0,0.0003863,15]
[420368399,1776041560664,-1143.2,0.0003863,15]
[420368400,1776041560674,-500.0,0.0003863,15]
[420368401,1776041560683,-691.76,0.0003863,15]
[420368402,1776041560692,-2867.96,0.0003863,15]
[420368403,1776041560703,-500.0,0.0003863,15]
[420368404,1776041560713,-502.71,0.0003863,15]
[420368405,1776041560724,-668.39,0.0003863,15]
[420368406,1776041560734,-825.64,0.0003863,15]
[420368407,1776041560745,-500.0,0.0003863,2]
[420368408,1776041560754,-500.0,0.0003863,15]
[420368409,1776041560763,-772.87,0.0003863,15]
[420368410,1776041560775,-500.0,0.0003863,15]
[420368411,1776041560786,-500.0,0.0003863,15]
[420368412,1776041560795,-2035.28,0.0003863,15]
[420368413,1776041560804,-2804.52,0.0003863,15]
[420368414,1776041560818,-500.0,0.0003863,15]
[420368415,1776041560828,-684.809142,0.0003863,15]
[420368416,1776041560846,-332.857305,0.0003863,15]
[420368417,1776041560855,-2110.0,0.0003863,2]
[420368418,1776041560866,-1528.0,0.0003863,30]
[420368419,1776041560875,-1592.09848575,0.0003863,2]
[420368420,1776041560889,-49051.28107873,0.0003863,2]
[420368421,1776041560899,-48835.37590304,0.00038765,120]
[420368422,1776041560909,-267.59341894,0.00038767,76]
[420368423,1776041560918,-648.7048,0.00038767,15]
[420368424,1776041560932,-155.07,0.000388,30]
[420368425,1776041560942,-1055.1329,0.000388,2]
[420368426,1776041560951,-151.0,0.00038826,5]
[420368427,1776041560961,-21500.14131773,0.00038834,2]
[420368428,1776041560974,-3166.44347919,0.0003889,30]
[420368429,1776041560988,-1000.0,0.000389,120]
[420368430,1776041560999,-1549.73613916,0.000389,2]
[420368431,1776041561011,-2100.0,0.000389,14]
[420368432,1776041561020,-5828.66672179,0.00038903,15]
[420368433,1776041561038,-5828.66672178,0.00038903,15]
[420368434,1776041561050,-500.0,0.00038904,15]
[420368435,1776041561059,-500.0,0.00038904,15]
[420368436,1776041561071,-500.0,0.00038904,15]
[420368437,1776041561090,-500.0,0.00038904,15]
[420368438,1776041561100,-500.0,0.00038904,15]
[420368439,1776041561109,-1663.8,0.00038904,15]
[420368440,1776041561123,-500.0,0.00038904,15]
[420368441,1776041561136,-500.0,0.00038904,15]
[420368442,1776041561147,-500.0,0.00038904,15]
[420368443,1776041561166,-500.0,0.00038904,15]
[420368444,1776041561182,-500.0,0.00038904,15]
[420368445,1776041561193,-550.79,0.00038904,15]
[420368446,1776041561215,-381.02,0.00038904,15]
[420368447,1776041561227,-500.0,0.00038904,15]
[420368448,1776041561238,-500.0,0.00038904,15]
[420368449,1776041561279,-500.0,0.00038904,15]
[420368450,1776041561289,-500.0,0.00038904,15]
[420368451,1776041561304,-500.0,0.00038904,15]
[420368452,1776041561318,-500.0,0.00038904,15]
[420368453,1776041561332,-500.0,0.00038904,15]
[420368454,1776041561341,-500.0,0.00038904,15]
[420368455,1776041561355,-500.0,0.00038904,15]
[420368456,1776041561364,-697.6,0.00038904,15]
[420368457,1776041561380,-602.9390877,0.00038904,15]
[420368458,1776041561394,-500.0,0.00038904,15]
[420368459,1776041561405,-500.0,0.00038904,15]
[420368460,1776041561439,-500.0,0.00038904,15]
[420368461,1776041561448,-500.0,0.00038904,15]
[420368462,1776041561457,-500.0,0.00038904,15]
[420368463,1776041561486,-947.62,0.00038904,15]
[420368464,1776041561507,-500.0,0.00038904,15]
[420368465,1776041561538,-500.0,0.00038904,15]
[420368466,1776041561565,-500.0,0.00038904,15]
[420368467,1776041561579,-785.07,0.00038904,15]
[420368468,1776041561600,-500.0,0.00038904,15]
[420368469,1776041561610,-1045.15,0.00038904,15]
[420368470,1776041561632,-500.0,0.00038904,15]
[420368471,1776041561642,-500.0,0.00038904,15]
[420368472,1776041561651,-500.0,0.00038904,15]
[420368473,1776041561661,-500.0,0.00038904,15]
[420368474,1776041561688,-500.0,0.00038904,15]
[420368475,1776041561699,-500.0,0.00038904,15]
[420368476,1776041561721,-1634.13,0.00038904,7]
[420368477,1776041561756,-500.0,0.00038904,15]
[420368478,1776041561781,-500.0,0.00038904,15]
[420368479,1776041561794,-500.0,0.00038904,7]
[420368480,1776041561806,-500.0,0.00038904,15]
[420368481,1776041561826,-500.0,0.00038904,15]
[420368482,1776041561858,-628.08,0.00038904,15]
[420368483,1776041561870,-710.03,0.00038904,15]
[420368484,1776041561920,-500.0,0.00038904,15]
[420368485,1776041561930,-849.78,0.00038904,15]
[420368486,1776041561957,-500.0,0.00038904,15]
[420368487,1776041561989,-500.0,0.00038904,15]
[420368488,1776041561999,-500.0,0.00038904,15]
[420368489,1776041562023,-1943.24,0.00038904,15]
[420368490,1776041562034,-500.0,0.00038904,15]
[420368491,1776041562044,-500.0,0.00038904,15]
[420368492,1776041562073,-500.0,0.00038904,15]
[420368493,1776041562083,-572.03034372,0.00038904,15]
[420368494,1776041562098,-500.0,0.00038904,15]
[420368495,1776041562111,-1068.31,0.00038904,15]
[420368496,1776041562135,-601.67,0.00038904,15]
[420368497,1776041562145,-519.44226371,0.00038904,15]
[420368498,1776041562162,-500.0,0.00038904,15]
[420368499,1776041562174,-500.0,0.00038904,15]
[420368500,1776041562194,-500.0,0.00038904,15]
[420368501,1776041562203,-763.96,0.00038904,15]
[420368502,1776041562224,-520.67465854,0.00038904,14]
[420368503,1776041562233,-500.0,0.00038904,15]
[420368504,1776041562254,-370.97710793,0.00038904,15]
[420368505,1776041562263,-500.0,0.00038904,15]
[420368506,1776041562276,-647.78,0.00038904,15]
[420368507,1776041562293,-500.0,0.00038904,15]
[420368508,1776041562303,-1381.7,0.00038904,15]
[420368509,1776041562314,-500.0,0.00038904,14]
[420368510,1776041562345,-500.0,0.00038904,15]
[420368511,1776041562355,-792.32,0.00038904,15]
[420368512,1776041562365,-527.39,0.00038904,15]
[420368513,1776041562390,-500.0,0.00038904,15]
[420368514,1776041562400,-500.0,0.00038904,15]
[420368515,1776041562414,-500.0,0.00038904,15]
[420368516,1776041562427,-500.0,0.00038904,15]
[420368517,1776041562437,-1152.6,0.00038904,15]
[420368518,1776041562451,-500.0,0.00038904,15]
[420368519,1776041562465,-500.0,0.00038904,15]
[420368520,1776041562486,-500.0,0.00038904,15]
[420368521,1776041562500,-500.0,0.00038904,15]
[420368522,1776041562514,-500.0,0.00038904,15]
[420368523,1776041562543,-969.29,0.00038904,15]
[420368524,1776041562555,-500.0,0.00038904,15]
[420368525,1776041562580,-500.0,0.00038904,15]
[420368526,1776041562594,-1217.57,0.00038904,15]
[420368527,1776041562604,-1867.56,0.00038904,15]
[420368528,1776041562636,-500.0,0.00038904,15]
[420368529,1776041562647,-497.0284829,0.00038904,15]
[420368530,1776041562669,-621.51,0.00038904,15]
[420368531,1776041562693,-500.0,0.00038904,15]
[420368532,1776041562714,-582.94,0.00038904,15]
[420368533,1776041562725,-500.0,0.00038904,15]
[420368534,1776041562742,-500.0,0.00038904,15]
[420368535,1776041562758,-500.0,0.00038904,15]
[420368536,1776041562769,-371.66456857,0.00038904,15]
[420368537,1776041562785,-1105.13,0.00038904,15]
[420368538,1776041562802,-772.66,0.00038904,15]
[420368539,1776041562812,-500.0,0.00038904,15]
[420368540,1776041562831,-500.0,0.00038904,15]
[420368541,1776041562841,-500.0,0.00038904,15]
[420368542,1776041562861,-500.0,0.00038904,15]
[420368543,1776041562874,-655.74,0.00038904,15]
[420368544,1776041562889,-1081.95,0.00038904,15]
[420368545,1776041562902,-500.0,0.00038904,15]
[420368546,1776041562917,-500.0,0.00038904,15]
[420368547,1776041562930,-500.0,0.00038904,15]
[420368548,1776041562943,-500.0,0.00038904,15]
[420368549,1776041562955,-500.0,0.00038904,15]
[420368550,1776041562966,-327.34040438,0.00038904,15]
[420368551,1776041562990,-953.1,0.00038904,15]
[420368552,1776041563000,-500.0,0.00038904,15]
[420368553,1776041563017,-500.0,0.00038904,15]
[420368554,1776041563035,-627.16,0.00038904,15]
[420368555,1776041563046,-2804.38,0.00038904,15]
[420368556,1776041563057,-500.0,0.00038904,15]
[420368557,1776041563074,-500.0,0.00038904,15]
[420368558,1776041563086,-1274.7,0.00038904,15]
[420368559,1776041563097,-500.0,0.00038904,15]
[420368560,1776041563112,-500.0,0.00038904,15]
[420368561,1776041563125,-500.0,0.00038904,15]
[420368562,1776041563137,-558.44807791,0.00038904,15]
[420368563,1776041563149,-2514.55,0.00038904,15]
[420368564,1776041563185,-386.43,0.00038904,15]
[420368565,1776041563213,-719.78,0.00038904,15]
[420368566,1776041563244,-500.0,0.00038904,15]
[420368567,1776041563274,-859.84,0.00038904,2]
[420368568,1776041563309,-552.98,0.00038904,15]
[420368569,1776041563325,-914.83,0.00038904,15]
[420368570,1776041563335,-500.0,0.00038904,15]
[420368571,1776041563357,-500.0,0.00038904,15]
[420368572,1776041563367,-500.0,0.00038904,15]
[420368573,1776041563378,-710.68,0.00038904,15]
[420368574,1776041563406,-500.0,0.00038904,15]